[Event "FIDE Womens World Cup 2021"]
[Site "Sochi"]
[Date "2021.07.30"]
[Round "6.2"]
[White "Kosteniuk, Alexandra"]
[Black "Tan, Zhongyi"]
[Result "1-0"]
[ECO "C42"]
[WhiteElo "2472"]
[BlackElo "2511"]
[Annotator "ChessBase"]
[PlyCount "75"]
[EventDate "2021.07.12"]
[EventType "k.o."]
[EventCountry "RUS"]
[SourceTitle "playchess.com"]
[Source "ChessBase"]
[SourceQuality "1"]
[TimeControl "40/5400+30:1800+30"]

1. e4 {[%emt 0:00:04]} e5 {[%emt 0:00:05]} 2. Nf3 {[%emt 0:00:07]} Nf6 {[%emt 0:00:09]} 3. Nxe5 {[%emt 0:00:16]} d6 {[%emt 0:00:07]} 4. Nf3 {[%emt 0:00:04]} Nxe4 {[%emt 0:00:06]} 5. c4 {[%emt 0:00:21]} Nc6 {[%emt 0:04:25]} 6. d3 {[%emt 0:00:17]} Nf6 {[%emt 0:00:59]} 7. d4 {[%emt 0:00:05]} Be7 {[%emt 0:01:43]} 8. d5 {[%emt 0:00:33]} Ne5 {[%emt 0:00:31]} 9. Be2 {[%emt 0:00:19]} Nxf3+ {[%emt 0:07:20]} 10. Bxf3 {[%emt 0:00:06]} h5 {[%emt 0:00:30]} 11. h3 {[%emt 0:01:16]} Bf5 {[%emt 0:00:13]} 12. Nc3 {[%emt 0:01:25]} Qd7 {[%emt 0:00:26]} 13. Be3 {[%emt 0:02:48]} a6 {[%emt 0:01:31]} 14. a4 {[%emt 0:03:42]} c5 {[%emt 0:08:24]} 15. dxc6 {[%emt 0:02:29]} bxc6 {[%emt 0:00:05]} 16. a5 {[%emt 0:00:26]} Rb8 {[%emt 0:07:33]} 17. O-O {[%emt 0:08:15]} O-O {[%emt 0:06:24]} 18. Na4 {[%emt 0:02:03]} d5 {[%emt 0:02:12]} 19. Nb6 {[%emt 0:05:24]} Qd6 {[%emt 0:00:16]} 20. Rc1 {[%emt 0:11:49]} Qb4 {[%emt 0:14:36]} 21. Bd4 {[%emt 0:11:00]} dxc4 {[%emt 0:03:01]} 22. Re1 {[%emt 0:10:01]} Be6 {[%emt 0:10:57]} 23. Rxe6 {[%emt 0:11:08]} fxe6 {[%emt 0:00:06]} 24. Qe2 {[%emt 0:00:06]} Rf7 {[%emt 0:03:51]} 25. Nxc4 {[%emt 0:01:42]} Nd5 {[%emt 0:01:56]} 26. Bxh5 {[%emt 0:00:34]} Rbf8 {[%emt 0:03:49]} 27. Qxe6 {[%emt 0:02:49]} Nf4 {[%emt 0:00:26]} 28. Bxf7+ {[%emt 0:00:04]} Rxf7 {[%emt 0:00:04]} 29. Qg4 {[%emt 0:04:54]} Bc5 {[%emt 0:01:34]} 30. Be3 {[%emt 0:04:44]} Bxe3 {[%emt 0:09:36]} 31. fxe3 {[%emt 0:01:12]} Qc5 {[%emt 0:02:33]} 32. b4 {[%emt 0:01:27]} Qa7 {[%emt 0:00:04]} 33. Rf1 {[%emt 0:07:16]} Nd3 {[%emt 0:00:40]} 34. Rd1 {[%emt 0:01:54]} Ne5 {[%emt 0:06:25]} 35. Rd8+ {[%emt 0:02:49]} Rf8 {[%emt 0:00:05]} 36. Rxf8+ {[%emt 0:01:22]} Kxf8 {[%emt 0:00:06]} 37. Qf4+ {[%emt 0:00:12]} Nf7 {[%emt 0:00:13]} 38. Ne5 {[%emt 0:00:19]} 1-0

[Event "FIDE Womens World Cup 2021"]
[Site "Sochi"]
[Date "2021.08.02"]
[Round "7.2"]
[White "Muzychuk, Anna"]
[Black "Tan, Zhongyi"]
[Result "1/2-1/2"]
[ECO "C42"]
[WhiteElo "2527"]
[BlackElo "2511"]
[Annotator "ChessBase"]
[PlyCount "98"]
[EventDate "2021.07.12"]
[EventType "k.o."]
[EventCountry "RUS"]
[SourceTitle "playchess.com"]
[Source "ChessBase"]
[SourceQuality "1"]
[TimeControl "40/5400+30:1800+30"]

1. e4 {[%emt 0:00:03]} e5 {[%emt 0:00:04]} 2. Nf3 {[%emt 0:00:06]} Nf6 {[%emt 0:00:06]} 3. Nxe5 {[%emt 0:00:06]} d6 {[%emt 0:00:04]} 4. Nf3 {[%emt 0:00:07]} Nxe4 {[%emt 0:00:07]} 5. Bd3 {[%emt 0:00:08]} Nf6 {[%emt 0:02:18]} 6. O-O {[%emt 0:00:29]} Be7 {[%emt 0:00:04]} 7. h3 {[%emt 0:00:34]} O-O {[%emt 0:00:07]} 8. c3 {[%emt 0:00:11]} Nbd7 {[%emt 0:05:49]} 9. Bc2 {[%emt 0:00:28]} Ne5 {[%emt 0:03:05]} 10. Nh4 {[%emt 0:06:58]} Ng6 {[%emt 0:06:37]} 11. Nf5 {[%emt 0:01:16]} Re8 {[%emt 0:00:08]} 12. d4 {[%emt 0:10:36]} Bf8 {[%emt 0:05:14]} 13. Nd2 {[%emt 0:03:42]} d5 {[%emt 0:03:45]} 14. Ng3 {[%emt 0:06:04]} Bd6 {[%emt 0:03:03]} 15. Re1 {[%emt 0:02:47]} Bd7 {[%emt 0:16:52]} 16. Ndf1 {[%emt 0:04:14]} Rxe1 {[%emt 0:00:44]} 17. Qxe1 {[%emt 0:00:00]} Qf8 {[%emt 0:00:46]} 18. Nf5 {[%emt 0:04:54]} Re8 {[%emt 0:00:16]} 19. Qd1 {[%emt 0:01:24]} Ne4 {[%emt 0:02:57]} 20. Nxd6 {[%emt 0:08:09]} Qxd6 {[%emt 0:00:06]} 21. a4 {[%emt 0:02:39]} h6 {[%emt 0:08:07]} 22. Be3 {[%emt 0:06:01]} f5 {[%emt 0:03:18]} 23. f3 {[%emt 0:03:35]} Ng5 {[%emt 0:01:26]} 24. Bxg5 {[%emt 0:03:52]} hxg5 {[%emt 0:00:06]} 25. Qd2 {[%emt 0:00:29]} Qe7 {[%emt 0:07:39]} 26. g3 {[%emt 0:16:05]} Qe2 {[%emt 0:03:23]} 27. Bd1 {[%emt 0:00:33]} Qe7 {[%emt 0:05:40]} 28. Bc2 {[%emt 0:00:13]} Qe2 {[%emt 0:10:29]} 29. Bd1 {[%emt 0:00:05]} Qa6 {[%emt 0:02:54]} 30. Bb3 {[%emt 0:06:16]} c6 {[%emt 0:01:01]} 31. Re1 {[%emt 0:05:19]} Qb6 {[%emt 0:00:11]} 32. Rxe8+ {[%emt 0:02:12]} Bxe8 {[%emt 0:00:04]} 33. Bd1 {[%emt 0:01:41]} f4 {[%emt 0:00:34]} 34. g4 {[%emt 0:01:55]} c5 {[%emt 0:00:42]} 35. dxc5 {[%emt 0:03:19]} Qxc5+ {[%emt 0:00:05]} 36. Qf2 {[%emt 0:00:06]} b6 {[%emt 0:00:18]} 37. Nd2 {[%emt 0:01:30]} Ne5 {[%emt 0:00:24]} 38. Qxc5 {[%emt 0:00:42]} bxc5 {[%emt 0:00:06]} 39. b4 {[%emt 0:00:11]} c4 {[%emt 0:02:19]} 40. Nb1 {[%emt 0:00:48]} Kf8 {[%emt 0:05:44]} 41. Na3 {[%emt 0:04:13]} Ke7 {[%emt 0:00:20]} 42. Kf1 {[%emt 0:05:53]} a6 {[%emt 0:11:46]} 43. Ke2 {[%emt 0:06:52]} Bc6 {[%emt 0:02:04]} 44. Kd2 {[%emt 0:04:34]} Kd6 {[%emt 0:00:12]} 45. a5 {[%emt 0:04:07]} Be8 {[%emt 0:02:11]} 46. Nc2 {[%emt 0:02:35]} Nc6 {[%emt 0:00:09]} 47. Nd4 {[%emt 0:01:59]} Bd7 {[%emt 0:01:59]} 48. Bc2 {[%emt 0:00:33]} Nxd4 {[%emt 0:01:13]} 49. cxd4 {[%emt 0:00:00]} Bb5 {[%emt 0:00:30]} 1/2-1/2

[Event "FIDE Womens World Cup 2021"]
[Site "Sochi"]
[Date "2021.08.03"]
[Round "7.3"]
[White "Muzychuk, Anna"]
[Black "Tan, Zhongyi"]
[Result "0-1"]
[ECO "C42"]
[WhiteElo "2527"]
[BlackElo "2511"]
[Annotator "ChessBase"]
[PlyCount "98"]
[EventDate "2021.07.12"]
[EventType "k.o."]
[EventCountry "RUS"]
[SourceTitle "playchess.com"]
[Source "ChessBase"]
[SourceQuality "1"]
[TimeControl "1500+10"]

1. e4 {[%emt 0:00:01]} e5 {[%emt 0:00:01]} 2. Nf3 {[%emt 0:00:02]} Nf6 {[%emt 0:00:02]} 3. Nxe5 {[%emt 0:00:03]} d6 {[%emt 0:00:01]} 4. Nf3 {[%emt 0:00:01]} Nxe4 {[%emt 0:00:02]} 5. Nc3 {[%emt 0:00:02]} Nxc3 {[%emt 0:00:04]} 6. dxc3 {[%emt 0:00:01]} Nd7 {[%emt 0:00:02]} 7. Be3 {[%emt 0:01:00]} Nf6 {[%emt 0:00:02]} 8. Qd2 {[%emt 0:03:55]} g6 {[%emt 0:00:01]} 9. O-O-O {[%emt 0:05:12]} Bg7 {[%emt 0:00:02]} 10. Bg5 {[%emt 0:00:57]} O-O {[%emt 0:00:04]} 11. Qf4 {[%emt 0:00:19]} d5 {[%emt 0:00:19]} 12. h4 {[%emt 0:01:50]} c6 {[%emt 0:00:26]} 13. h5 {[%emt 0:00:38]} Nxh5 {[%emt 0:00:40]} 14. Qh4 {[%emt 0:05:54]} f6 {[%emt 0:00:23]} 15. Be3 {[%emt 0:00:00]} f5 {[%emt 0:00:42]} 16. Bg5 {[%emt 0:00:17]} Qa5 {[%emt 0:00:21]} 17. Kb1 {[%emt 0:00:28]} Re8 {[%emt 0:03:29]} 18. Bd3 {[%emt 0:00:12]} c5 {[%emt 0:00:39]} 19. Rhe1 {[%emt 0:02:48]} Be6 {[%emt 0:00:11]} 20. Ne5 {[%emt 0:02:51]} d4 {[%emt 0:02:11]} 21. c4 {[%emt 0:00:42]} Bf7 {[%emt 0:00:21]} 22. Bd2 {[%emt 0:00:50]} Qd8 {[%emt 0:00:31]} 23. Qh2 {[%emt 0:00:15]} Qc7 {[%emt 0:00:49]} 24. f4 {[%emt 0:00:01]} b5 {[%emt 0:00:10]} 25. Nxf7 {[%emt 0:00:28]} Qxf7 26. b3 b4 {[%emt 0:00:45]} 27. g3 {[%emt 0:00:19]} Nf6 {[%emt 0:00:45]} 28. Qg2 {[%emt 0:00:03]} a5 {[%emt 0:00:51]} 29. a4 {[%emt 0:00:29]} bxa3 {[%emt 0:00:16]} 30. Rxe8+ {[%emt 0:00:01]} Rxe8 {[%emt 0:00:32]} 31. Bxa5 {[%emt 0:00:02]} a2+ {[%emt 0:01:26]} 32. Ka1 {[%emt 0:00:00]} Qa7 {[%emt 0:01:30]} 33. Bd2 {[%emt 0:00:04]} Ng4 {[%emt 0:02:29]} 34. Qd5+ {[%emt 0:00:17]} Kh8 {[%emt 0:00:03]} 35. Qc6 {[%emt 0:00:13]} Ra8 {[%emt 0:00:31]} 36. Bc1 {[%emt 0:00:37]} Ne3 {[%emt 0:00:13]} 37. Rd2 {[%emt 0:00:09]} Qa5 {[%emt 0:00:11]} 38. Bb2 {[%emt 0:00:09]} h6 {[%emt 0:03:56]} 39. Re2 {[%emt 0:00:10]} Kh7 {[%emt 0:01:07]} 40. g4 {[%emt 0:00:08]} Nxg4 {[%emt 0:01:00]} 41. Re7 {[%emt 0:00:08]} Ra7 {[%emt 0:00:08]} 42. Rxa7 {[%emt 0:00:20]} Qxa7 {[%emt 0:00:02]} 43. Qa4 {[%emt 0:00:04]} Qc7 {[%emt 0:00:18]} 44. Kxa2 {[%emt 0:00:01]} Qxf4 {[%emt 0:00:15]} 45. Qc6 {[%emt 0:00:12]} Qe5 {[%emt 0:00:23]} 46. b4 {[%emt 0:00:23]} cxb4 {[%emt 0:00:20]} 47. c5 {[%emt 0:00:00]} Ne3 {[%emt 0:01:13]} 48. Kb3 {[%emt 0:00:14]} h5 {[%emt 0:00:05]} 49. Kxb4 {[%emt 0:00:09]} h4 {[%emt 0:00:09]} 0-1

[Event "FIDE Womens World Cup 2021"]
[Site "Sochi"]
[Date "2021.08.03"]
[Round "7.4"]
[White "Tan, Zhongyi"]
[Black "Muzychuk, Anna"]
[Result "1/2-1/2"]
[ECO "D08"]
[WhiteElo "2511"]
[BlackElo "2527"]
[Annotator "ChessBase"]
[PlyCount "53"]
[EventDate "2021.07.12"]
[EventType "k.o."]
[EventCountry "RUS"]
[SourceTitle "playchess.com"]
[Source "ChessBase"]
[SourceQuality "1"]
[TimeControl "1500+10"]

1. d4 {[%emt 0:00:03]} d5 {[%emt 0:00:14]} 2. c4 {[%emt 0:00:03]} e5 {[%emt 0:00:10]} 3. dxe5 {[%emt 0:00:40]} Ne7 {[%emt 0:00:45]} 4. Nf3 {[%emt 0:00:24]} Nbc6 {[%emt 0:00:28]} 5. Nbd2 {[%emt 0:03:04]} dxc4 {[%emt 0:04:52]} 6. e3 {[%emt 0:00:09]} b5 {[%emt 0:00:17]} 7. a4 {[%emt 0:00:22]} Bg4 {[%emt 0:00:03]} 8. axb5 {[%emt 0:02:25]} Nxe5 {[%emt 0:00:04]} 9. Qa4 {[%emt 0:00:09]} Nd3+ {[%emt 0:08:12]} 10. Bxd3 {[%emt 0:00:07]} Qxd3 {[%emt 0:00:01]} 11. b6+ {[%emt 0:00:58]} Bd7 {[%emt 0:02:25]} 12. Qxa7 {[%emt 0:04:03]} Rd8 {[%emt 0:01:52]} 13. Ne5 {[%emt 0:00:33]} Qd5 {[%emt 0:00:03]} 14. Nxd7 {[%emt 0:02:23]} Qxg2 {[%emt 0:00:04]} 15. Rf1 {[%emt 0:00:06]} Nc6 {[%emt 0:00:11]} 16. Qb7 {[%emt 0:00:53]} Kxd7 {[%emt 0:00:59]} 17. Nxc4 {[%emt 0:01:37]} Bb4+ {[%emt 0:00:56]} 18. Bd2 {[%emt 0:00:02]} Bxd2+ {[%emt 0:00:13]} 19. Nxd2 {[%emt 0:00:03]} Rb8 {[%emt 0:01:31]} 20. Qxc7+ {[%emt 0:00:08]} Ke6 {[%emt 0:00:00]} 21. b7 {[%emt 0:02:57]} Rhd8 {[%emt 0:02:08]} 22. Ra6 {[%emt 0:00:24]} Rd6 {[%emt 0:00:04]} 23. Qc8+ {[%emt 0:03:47]} Ke7 {[%emt 0:01:10]} 24. Qc7+ {[%emt 0:00:37]} Ke6 {[%emt 0:00:06]} 25. Qc8+ {[%emt 0:00:02]} Ke7 {[%emt 0:00:30]} 26. Qc7+ {[%emt 0:00:07]} Ke6 {[%emt 0:00:01]} 27. Qc8+ 1/2-1/2